[Event "Titled Tuesday Blitz June 29 2021"]
[White "ulkaf961"]
[Black "Undisputed92"]
[WhiteElo "2368"]
[BlackElo "2704"]
[Result "1/2-1/2"]
[Round "01"]
[TimeControl "180+1"]
[Date "2021.06.29"]
[WhiteClock "0:00:04"]
[BlackClock "0:00:17"]

1. d4 {[%clk 0:03:00]}  d6 {[%clk 0:02:57]} 2. e4 {[%clk 0:02:59]}  Nf6 {[%clk 0:02:55]} 3. Nc3 {[%clk 0:02:59]}  e5 {[%clk 0:02:54]} 4. Nf3 {[%clk 0:02:58]}  exd4 {[%clk 0:02:52]} 5. Nxd4 {[%clk 0:02:57]}  Be7 {[%clk 0:02:52]} 6. Be2 {[%clk 0:02:32]}  O-O {[%clk 0:02:52]} 7. O-O {[%clk 0:02:32]}  Re8 {[%clk 0:02:51]} 8. Re1 {[%clk 0:02:31]}  Bf8 {[%clk 0:02:48]} 9. Qd3 {[%clk 0:02:01]}  Nbd7 {[%clk 0:02:40]} 10. Bg5 {[%clk 0:01:59]}  h6 {[%clk 0:02:39]} 11. Bxf6 {[%clk 0:01:51]}  Nxf6 {[%clk 0:02:37]} 12. Bf3 {[%clk 0:01:38]}  Nd7 {[%clk 0:02:26]} 13. Nd5 {[%clk 0:01:24]}  Ne5 {[%clk 0:02:24]} 14. Qc3 {[%clk 0:01:24]}  c6 {[%clk 0:02:22]} 15. Nf4 {[%clk 0:01:19]}  Qf6 {[%clk 0:02:15]} 16. Nh5 {[%clk 0:00:59]}  Nxf3+ {[%clk 0:02:13]} 17. Nxf3 {[%clk 0:00:59]}  Qxc3 {[%clk 0:02:11]} 18. bxc3 {[%clk 0:00:59]}  Bg4 {[%clk 0:02:09]} 19. Ng3 {[%clk 0:00:58]}  Bxf3 {[%clk 0:01:58]} 20. gxf3 {[%clk 0:00:57]}  g6 {[%clk 0:01:59]} 21. Rab1 {[%clk 0:00:55]}  Re7 {[%clk 0:01:53]} 22. Red1 {[%clk 0:00:54]}  Rd8 {[%clk 0:01:53]} 23. e5 {[%clk 0:00:41]}  d5 {[%clk 0:01:16]} 24. f4 {[%clk 0:00:39]}  Rde8 {[%clk 0:01:13]} 25. Rd4 {[%clk 0:00:24]}  h5 {[%clk 0:01:11]} 26. c4 {[%clk 0:00:24]}  h4 {[%clk 0:01:05]} 27. Nf1 {[%clk 0:00:17]}  dxc4 {[%clk 0:01:03]} 28. Rxc4 {[%clk 0:00:18]}  g5 {[%clk 0:00:57]} 29. fxg5 {[%clk 0:00:16]}  Rxe5 {[%clk 0:00:57]} 30. Rxh4 {[%clk 0:00:14]}  Rxg5+ {[%clk 0:00:57]} 31. Ng3 {[%clk 0:00:14]}  b5 {[%clk 0:00:56]} 32. Kf1 {[%clk 0:00:14]}  Bg7 {[%clk 0:00:52]} 33. Ne4 {[%clk 0:00:14]}  Rge5 {[%clk 0:00:49]} 34. f3 {[%clk 0:00:11]}  f5 {[%clk 0:00:48]} 35. Ng3 {[%clk 0:00:10]}  Rc5 {[%clk 0:00:47]} 36. Rh5 {[%clk 0:00:08]}  Ree5 {[%clk 0:00:44]} 37. Re1 {[%clk 0:00:07]}  Rxe1+ {[%clk 0:00:34]} 38. Kxe1 {[%clk 0:00:07]}  Rxc2 {[%clk 0:00:34]} 39. Nxf5 {[%clk 0:00:07]}  Bc3+ {[%clk 0:00:33]} 40. Kd1 {[%clk 0:00:07]}  Rxa2 {[%clk 0:00:30]} 41. Ne7+ {[%clk 0:00:07]}  Kf7 {[%clk 0:00:29]} 42. Nxc6 {[%clk 0:00:07]}  b4 {[%clk 0:00:29]} 43. Rb5 {[%clk 0:00:07]}  Rb2 {[%clk 0:00:21]} 44. Kc1 {[%clk 0:00:05]}  b3 {[%clk 0:00:20]} 45. Na5 {[%clk 0:00:03]}  Rc2+ {[%clk 0:00:18]} 46. Kb1 {[%clk 0:00:03]}  Bxa5 {[%clk 0:00:17]} 47. Rxa5 {[%clk 0:00:03]}  Rxh2 {[%clk 0:00:17]} 48. Rxa7+ {[%clk 0:00:03]}  Ke6 {[%clk 0:00:18]} 49. Rb7 {[%clk 0:00:04]}  Kf5 {[%clk 0:00:16]} 50. Rxb3 {[%clk 0:00:04]}  Rf2 {[%clk 0:00:16]} 51. Rc3 {[%clk 0:00:03]}  Kf4 {[%clk 0:00:16]} 52. Kc1 {[%clk 0:00:04]}  Rxf3 {[%clk 0:00:16]} 53. Rxf3+ {[%clk 0:00:04]}  Kxf3 {[%clk 0:00:17]} 1/2-1/2


[Site "https://www.chess.com"]

[Event "Titled Tuesday Blitz June 29 2021"]
[White "viditchess"]
[Black "Artem_0degov"]
[WhiteElo "3047"]
[BlackElo "2466"]
[Result "1-0"]
[Round "01"]
[TimeControl "180+1"]
[Date "2021.06.29"]
[WhiteClock "0:00:57"]
[BlackClock "0:00:02"]

1. Nf3 {[%clk 0:03:00]}  Nf6 {[%clk 0:02:58]} 2. c4 {[%clk 0:03:00]}  g6 {[%clk 0:02:56]} 3. Nc3 {[%clk 0:03:00]}  Bg7 {[%clk 0:02:52]} 4. g3 {[%clk 0:02:59]}  O-O {[%clk 0:02:52]} 5. Bg2 {[%clk 0:02:58]}  c5 {[%clk 0:02:48]} 6. d4 {[%clk 0:02:58]}  cxd4 {[%clk 0:02:48]} 7. Nxd4 {[%clk 0:02:59]}  Nc6 {[%clk 0:02:48]} 8. O-O {[%clk 0:02:59]}  d6 {[%clk 0:02:46]} 9. e3 {[%clk 0:02:39]}  Bd7 {[%clk 0:02:21]} 10. b3 {[%clk 0:02:38]}  Qa5 {[%clk 0:02:10]} 11. Bd2 {[%clk 0:02:35]}  Qh5 {[%clk 0:02:00]} 12. Nde2 {[%clk 0:02:14]}  Rac8 {[%clk 0:01:34]} 13. Rc1 {[%clk 0:02:11]}  g5 {[%clk 0:01:21]} 14. f3 {[%clk 0:02:03]}  Ne5 {[%clk 0:01:14]} 15. e4 {[%clk 0:01:55]}  g4 {[%clk 0:00:54]} 16. Nf4 {[%clk 0:01:51]}  Nxf3+ {[%clk 0:00:48]} 17. Rxf3 {[%clk 0:01:48]}  Qc5+ {[%clk 0:00:11]} 18. Be3 {[%clk 0:01:45]}  gxf3 {[%clk 0:00:05]} 19. Bxc5 {[%clk 0:01:45]}  fxg2 {[%clk 0:00:06]} 20. Bxa7 {[%clk 0:01:40]}  Bg4 {[%clk 0:00:05]} 21. Qd2 {[%clk 0:01:31]}  Ra8 {[%clk 0:00:05]} 22. Be3 {[%clk 0:01:27]}  Nd7 {[%clk 0:00:03]} 23. Kxg2 {[%clk 0:01:21]}  Ne5 {[%clk 0:00:03]} 24. Rf1 {[%clk 0:01:21]}  h5 {[%clk 0:00:02]} 25. h3 {[%clk 0:01:20]}  e6 {[%clk 0:00:03]} 26. hxg4 {[%clk 0:01:20]}  Nxg4 {[%clk 0:00:03]} 27. Nxh5 {[%clk 0:01:12]}  Bxc3 {[%clk 0:00:03]} 28. Qxc3 {[%clk 0:01:12]}  Rxa2+ {[%clk 0:00:04]} 29. Bd2 {[%clk 0:01:13]}  Ne5 {[%clk 0:00:04]} 30. Qe3 {[%clk 0:01:10]}  f6 {[%clk 0:00:03]} 31. Qh6 {[%clk 0:01:08]}  Kf7 {[%clk 0:00:02]} 32. Rxf6+ {[%clk 0:01:03]}  Ke7 {[%clk 0:00:02]} 33. Qxf8+ {[%clk 0:01:02]}  Kd7 {[%clk 0:00:03]} 34. Rf2 {[%clk 0:01:02]}  Nd3 {[%clk 0:00:02]} 35. Nf6+ {[%clk 0:00:56]}  Kc6 {[%clk 0:00:02]} 36. Qc8+ {[%clk 0:00:57]}  Kb6 {[%clk 0:00:02]} 37. Be3+ {[%clk 0:00:57]}  Ka6 {[%clk 0:00:02]} 38. Rxa2# {[%clk 0:00:57]} 1-0


[Site "https://www.chess.com"]

[Event "Titled Tuesday Blitz June 29 2021"]
[White "DLR7"]
[Black "Grischuk"]
[WhiteElo "2604"]
[BlackElo "3082"]
[Result "0-1"]
[Round "02"]
[TimeControl "180+1"]
[Date "2021.06.29"]
[WhiteClock "0:00:18"]
[BlackClock "0:00:16"]

1. e4 {[%clk 0:03:00]}  c5 {[%clk 0:02:58]} 2. Nf3 {[%clk 0:03:00]}  d6 {[%clk 0:02:59]} 3. d4 {[%clk 0:02:56]}  cxd4 {[%clk 0:03:00]} 4. Qxd4 {[%clk 0:02:57]}  Nf6 {[%clk 0:02:59]} 5. Nc3 {[%clk 0:02:56]}  Nc6 {[%clk 0:02:49]} 6. Bb5 {[%clk 0:02:49]}  Bd7 {[%clk 0:02:48]} 7. Bxc6 {[%clk 0:02:49]}  Bxc6 {[%clk 0:02:49]} 8. O-O {[%clk 0:02:48]}  e6 {[%clk 0:02:39]} 9. Bg5 {[%clk 0:02:46]}  Be7 {[%clk 0:02:36]} 10. Rad1 {[%clk 0:02:46]}  O-O {[%clk 0:02:34]} 11. h3 {[%clk 0:02:42]}  h6 {[%clk 0:02:02]} 12. Bh4 {[%clk 0:02:37]}  Qa5 {[%clk 0:02:02]} 13. a3 {[%clk 0:02:31]}  Rfd8 {[%clk 0:01:56]} 14. Rfe1 {[%clk 0:02:11]}  Qh5 {[%clk 0:01:45]} 15. Bg3 {[%clk 0:02:08]}  e5 {[%clk 0:01:42]} 16. Qd3 {[%clk 0:02:04]}  Rac8 {[%clk 0:01:39]} 17. Qe3 {[%clk 0:01:44]}  a6 {[%clk 0:01:38]} 18. Qb6 {[%clk 0:01:34]}  g5 {[%clk 0:01:32]} 19. Nh2 {[%clk 0:01:23]}  Qg6 {[%clk 0:01:18]} 20. Qe3 {[%clk 0:01:20]}  h5 {[%clk 0:01:17]} 21. h4 {[%clk 0:01:03]}  g4 {[%clk 0:01:11]} 22. Nf1 {[%clk 0:01:00]}  Bf8 {[%clk 0:01:08]} 23. Nd2 {[%clk 0:00:57]}  Bh6 {[%clk 0:01:05]} 24. Qe2 {[%clk 0:00:58]}  b5 {[%clk 0:01:01]} 25. Nb3 {[%clk 0:00:56]}  Ba8 {[%clk 0:00:58]} 26. Rd3 {[%clk 0:00:47]}  Bf8 {[%clk 0:00:38]} 27. Nd2 {[%clk 0:00:33]}  Re8 {[%clk 0:00:37]} 28. Nf1 {[%clk 0:00:31]}  Re6 {[%clk 0:00:32]} 29. Kh2 {[%clk 0:00:29]}  Bh6 {[%clk 0:00:26]} 30. Ne3 {[%clk 0:00:23]}  Nxe4 {[%clk 0:00:24]} 31. Ned5 {[%clk 0:00:20]}  Nxc3 {[%clk 0:00:20]} 32. Rxc3 {[%clk 0:00:18]}  Rxc3 {[%clk 0:00:19]} 33. Nxc3 {[%clk 0:00:19]}  f5 {[%clk 0:00:19]} 34. Qd3 {[%clk 0:00:18]}  f4 {[%clk 0:00:18]} 35. Bxf4 {[%clk 0:00:18]}  Bxf4+ {[%clk 0:00:15]} 36. g3 {[%clk 0:00:18]}  Qxd3 {[%clk 0:00:16]} 37. cxd3 {[%clk 0:00:18]}  Bd2 {[%clk 0:00:16]} 0-1


[Site "https://www.chess.com"]

[Event "Titled Tuesday Blitz June 29 2021"]
[White "IMTominho"]
[Black "Neftegor"]
[WhiteElo "2839"]
[BlackElo "2556"]
[Result "1-0"]
[Round "02"]
[TimeControl "180+1"]
[Date "2021.06.29"]
[WhiteClock "0:01:51"]
[BlackClock "0:01:31"]

1. d4 {[%clk 0:03:00]}  Nf6 {[%clk 0:02:58]} 2. Bf4 {[%clk 0:03:00]}  c5 {[%clk 0:02:57]} 3. e3 {[%clk 0:03:00]}  Qb6 {[%clk 0:02:57]} 4. b3 {[%clk 0:02:56]}  cxd4 {[%clk 0:02:51]} 5. exd4 {[%clk 0:02:50]}  d5 {[%clk 0:02:51]} 6. Nf3 {[%clk 0:02:48]}  Bg4 {[%clk 0:02:50]} 7. Be2 {[%clk 0:02:46]}  Bxf3 {[%clk 0:02:48]} 8. Bxf3 {[%clk 0:02:46]}  Nc6 {[%clk 0:02:48]} 9. c3 {[%clk 0:02:46]}  e6 {[%clk 0:02:47]} 10. O-O {[%clk 0:02:46]}  Be7 {[%clk 0:02:48]} 11. Re1 {[%clk 0:02:46]}  O-O {[%clk 0:02:47]} 12. Nd2 {[%clk 0:02:46]}  Rac8 {[%clk 0:02:47]} 13. a4 {[%clk 0:02:43]}  Na5 {[%clk 0:02:37]} 14. Rc1 {[%clk 0:02:41]}  Bd6 {[%clk 0:02:29]} 15. Bg5 {[%clk 0:02:39]}  Be7 {[%clk 0:02:20]} 16. g3 {[%clk 0:02:33]}  Qd8 {[%clk 0:02:19]} 17. Qe2 {[%clk 0:02:27]}  a6 {[%clk 0:02:13]} 18. Qd3 {[%clk 0:02:25]}  Re8 {[%clk 0:02:12]} 19. h4 {[%clk 0:02:24]}  h6 {[%clk 0:02:08]} 20. Be3 {[%clk 0:02:23]}  Bd6 {[%clk 0:02:02]} 21. Kg2 {[%clk 0:02:13]}  Nc6 {[%clk 0:02:00]} 22. b4 {[%clk 0:02:12]}  e5 {[%clk 0:01:58]} 23. dxe5 {[%clk 0:02:11]}  Nxe5 {[%clk 0:01:57]} 24. Qf5 {[%clk 0:02:04]}  Re6 {[%clk 0:01:49]} 25. Bd4 {[%clk 0:02:03]}  Qe7 {[%clk 0:01:33]} 26. Bxe5 {[%clk 0:01:52]}  Bxe5 {[%clk 0:01:31]} 27. Rxe5 {[%clk 0:01:51]} 1-0


[Site "https://www.chess.com"]

[Event "Titled Tuesday Blitz June 29 2021"]
[White "Murad_Ibrahimli"]
[Black "PLAYER_2006_M"]
[WhiteElo "2836"]
[BlackElo "2551"]
[Result "1/2-1/2"]
[Round "02"]
[TimeControl "180+1"]
[Date "2021.06.29"]
[WhiteClock "0:00:15"]
[BlackClock "0:00:07"]

1. Nf3 {[%clk 0:03:00]}  Nf6 {[%clk 0:02:59]} 2. c4 {[%clk 0:03:00]}  e6 {[%clk 0:02:48]} 3. Nc3 {[%clk 0:02:59]}  d5 {[%clk 0:02:42]} 4. d4 {[%clk 0:02:58]}  Bb4 {[%clk 0:02:41]} 5. cxd5 {[%clk 0:02:54]}  exd5 {[%clk 0:02:41]} 6. Bf4 {[%clk 0:02:55]}  O-O {[%clk 0:02:40]} 7. Rc1 {[%clk 0:02:54]}  c5 {[%clk 0:02:35]} 8. e3 {[%clk 0:02:50]}  Nbd7 {[%clk 0:02:20]} 9. dxc5 {[%clk 0:02:37]}  Nxc5 {[%clk 0:02:18]} 10. Be2 {[%clk 0:02:37]}  Nfe4 {[%clk 0:02:02]} 11. O-O {[%clk 0:02:32]}  Nxc3 {[%clk 0:02:02]} 12. bxc3 {[%clk 0:02:33]}  Ba3 {[%clk 0:02:02]} 13. Rb1 {[%clk 0:02:28]}  Bf5 {[%clk 0:01:59]} 14. Rb5 {[%clk 0:01:59]}  a6 {[%clk 0:01:58]} 15. Nd4 {[%clk 0:01:56]}  Bg6 {[%clk 0:01:44]} 16. Rb3 {[%clk 0:01:48]}  Nxb3 {[%clk 0:01:35]} 17. Qxb3 {[%clk 0:01:49]}  Qa5 {[%clk 0:01:32]} 18. h4 {[%clk 0:01:41]}  Bc5 {[%clk 0:01:04]} 19. h5 {[%clk 0:01:35]}  Bxd4 {[%clk 0:00:58]} 20. hxg6 {[%clk 0:01:30]}  Bxc3 {[%clk 0:00:57]} 21. Bd6 {[%clk 0:01:16]}  hxg6 {[%clk 0:00:49]} 22. Bxf8 {[%clk 0:01:13]}  Rxf8 {[%clk 0:00:50]} 23. Rd1 {[%clk 0:01:13]}  d4 {[%clk 0:00:44]} 24. exd4 {[%clk 0:01:11]}  b5 {[%clk 0:00:44]} 25. d5 {[%clk 0:01:11]}  Rd8 {[%clk 0:00:42]} 26. d6 {[%clk 0:01:09]}  Be5 {[%clk 0:00:40]} 27. d7 {[%clk 0:01:08]}  Qc7 {[%clk 0:00:35]} 28. g3 {[%clk 0:00:58]}  Rxd7 {[%clk 0:00:28]} 29. Rxd7 {[%clk 0:00:54]}  Qxd7 {[%clk 0:00:29]} 30. Kg2 {[%clk 0:00:55]}  Qc6+ {[%clk 0:00:27]} 31. Bf3 {[%clk 0:00:55]}  Qc4 {[%clk 0:00:22]} 32. Qe3 {[%clk 0:00:55]}  Qd4 {[%clk 0:00:21]} 33. Qe2 {[%clk 0:00:50]}  Kf8 {[%clk 0:00:21]} 34. Bb7 {[%clk 0:00:48]}  Qb6 {[%clk 0:00:20]} 35. Bd5 {[%clk 0:00:43]}  Qd6 {[%clk 0:00:19]} 36. Qf3 {[%clk 0:00:41]}  f5 {[%clk 0:00:18]} 37. Bb3 {[%clk 0:00:40]}  Ke7 {[%clk 0:00:19]} 38. Qb7+ {[%clk 0:00:39]}  Kf6 {[%clk 0:00:18]} 39. f4 {[%clk 0:00:30]}  Bxf4 {[%clk 0:00:14]} 40. gxf4 {[%clk 0:00:30]}  Qd2+ {[%clk 0:00:15]} 41. Kg3 {[%clk 0:00:29]}  Qe1+ {[%clk 0:00:13]} 42. Kh3 {[%clk 0:00:21]}  Qe3+ {[%clk 0:00:13]} 43. Kg2 {[%clk 0:00:20]}  Qd2+ {[%clk 0:00:13]} 44. Kf3 {[%clk 0:00:18]}  Qd3+ {[%clk 0:00:09]} 45. Kf2 {[%clk 0:00:17]}  Qd2+ {[%clk 0:00:09]} 46. Kg1 {[%clk 0:00:18]}  Qe3+ {[%clk 0:00:08]} 47. Kh1 {[%clk 0:00:17]}  Qe1+ {[%clk 0:00:07]} 48. Kg2 {[%clk 0:00:15]}  Qd2+ {[%clk 0:00:07]} 1/2-1/2


[Site "https://www.chess.com"]

[Event "Titled Tuesday Blitz June 29 2021"]
[White "Sanan_Sjugirov"]
[Black "elohunter1999"]
[WhiteElo "2944"]
[BlackElo "2584"]
[Result "1-0"]
[Round "02"]
[TimeControl "180+1"]
[Date "2021.06.29"]
[WhiteClock "0:00:06"]
[BlackClock "0:00:03"]

1. e4 {[%clk 0:03:00]}  c6 {[%clk 0:02:59]} 2. d4 {[%clk 0:02:59]}  d5 {[%clk 0:03:00]} 3. exd5 {[%clk 0:02:58]}  cxd5 {[%clk 0:03:00]} 4. Bd3 {[%clk 0:02:58]}  Nc6 {[%clk 0:03:00]} 5. c3 {[%clk 0:02:59]}  Nf6 {[%clk 0:02:59]} 6. Bf4 {[%clk 0:02:52]}  Bg4 {[%clk 0:02:58]} 7. Qb3 {[%clk 0:02:50]}  e5 {[%clk 0:02:36]} 8. dxe5 {[%clk 0:02:46]}  Nh5 {[%clk 0:02:31]} 9. Be3 {[%clk 0:02:32]}  Nxe5 {[%clk 0:02:30]} 10. Bb5+ {[%clk 0:02:28]}  Nc6 {[%clk 0:02:25]} 11. Nd2 {[%clk 0:02:17]}  Be6 {[%clk 0:02:25]} 12. Qa4 {[%clk 0:02:14]}  Qc7 {[%clk 0:02:16]} 13. Ngf3 {[%clk 0:02:12]}  Bd6 {[%clk 0:02:04]} 14. Nd4 {[%clk 0:01:53]}  Bd7 {[%clk 0:02:00]} 15. Be2 {[%clk 0:01:39]}  Nf6 {[%clk 0:01:58]} 16. Nb5 {[%clk 0:01:39]}  Qb8 {[%clk 0:01:58]} 17. Nxd6+ {[%clk 0:01:35]}  Qxd6 {[%clk 0:01:59]} 18. Qf4 {[%clk 0:01:28]}  Qxf4 {[%clk 0:01:56]} 19. Bxf4 {[%clk 0:01:29]}  d4 {[%clk 0:01:56]} 20. c4 {[%clk 0:01:14]}  O-O {[%clk 0:01:49]} 21. O-O {[%clk 0:01:14]}  Bf5 {[%clk 0:01:44]} 22. Bf3 {[%clk 0:01:08]}  Rfe8 {[%clk 0:01:35]} 23. Rfe1 {[%clk 0:01:03]}  Rad8 {[%clk 0:01:31]} 24. a3 {[%clk 0:00:58]}  a5 {[%clk 0:01:29]} 25. Bc7 {[%clk 0:00:46]}  Rc8 {[%clk 0:01:13]} 26. Bb6 {[%clk 0:00:43]}  d3 {[%clk 0:00:58]} 27. Bxc6 {[%clk 0:00:42]}  Rxe1+ {[%clk 0:00:54]} 28. Rxe1 {[%clk 0:00:42]}  Rxc6 {[%clk 0:00:54]} 29. Bxa5 {[%clk 0:00:41]}  Re6 {[%clk 0:00:44]} 30. Rxe6 {[%clk 0:00:40]}  fxe6 {[%clk 0:00:42]} 31. f3 {[%clk 0:00:39]}  e5 {[%clk 0:00:42]} 32. Bc3 {[%clk 0:00:32]}  Nd7 {[%clk 0:00:27]} 33. Kf2 {[%clk 0:00:31]}  Kf7 {[%clk 0:00:27]} 34. Ke3 {[%clk 0:00:30]}  Ke6 {[%clk 0:00:27]} 35. Ne4 {[%clk 0:00:19]}  Nb6 {[%clk 0:00:12]} 36. b3 {[%clk 0:00:18]}  Nd7 {[%clk 0:00:11]} 37. Bb4 {[%clk 0:00:16]}  b6 {[%clk 0:00:09]} 38. Kxd3 {[%clk 0:00:15]}  Nf6 {[%clk 0:00:09]} 39. h3 {[%clk 0:00:10]}  Nxe4 {[%clk 0:00:09]} 40. fxe4 {[%clk 0:00:11]}  Bg6 {[%clk 0:00:09]} 41. Bd2 {[%clk 0:00:10]}  Be8 {[%clk 0:00:08]} 42. Be3 {[%clk 0:00:10]}  b5 {[%clk 0:00:09]} 43. Bd2 {[%clk 0:00:04]}  bxc4+ {[%clk 0:00:07]} 44. Kxc4 {[%clk 0:00:05]}  Bc6 {[%clk 0:00:07]} 45. g3 {[%clk 0:00:05]}  Bxe4 {[%clk 0:00:07]} 46. Kc5 {[%clk 0:00:06]}  Bg2 {[%clk 0:00:07]} 47. h4 {[%clk 0:00:06]}  h5 {[%clk 0:00:07]} 48. a4 {[%clk 0:00:06]}  Be4 {[%clk 0:00:06]} 49. b4 {[%clk 0:00:06]}  g6 {[%clk 0:00:06]} 50. b5 {[%clk 0:00:06]}  Kd7 {[%clk 0:00:06]} 51. a5 {[%clk 0:00:06]}  Bd3 {[%clk 0:00:04]} 52. Kb6 {[%clk 0:00:06]}  Kc8 {[%clk 0:00:04]} 53. Kc6 {[%clk 0:00:06]}  Be4+ {[%clk 0:00:04]} 54. Kd6 {[%clk 0:00:06]}  Bd3 {[%clk 0:00:05]} 55. Kc5 {[%clk 0:00:05]}  Kb7 {[%clk 0:00:04]} 56. a6+ {[%clk 0:00:05]}  Ka7 {[%clk 0:00:04]} 57. Be3 {[%clk 0:00:04]}  Ka8 {[%clk 0:00:03]} 58. Kc6 {[%clk 0:00:04]}  Be4+ {[%clk 0:00:03]} 59. Kc7 {[%clk 0:00:04]}  Bd3 {[%clk 0:00:04]} 60. Kb6 {[%clk 0:00:04]}  Be2 {[%clk 0:00:04]} 61. Ka5 {[%clk 0:00:05]}  e4 {[%clk 0:00:03]} 62. b6 {[%clk 0:00:05]}  Kb8 {[%clk 0:00:03]} 63. Bf4+ {[%clk 0:00:05]}  Kc8 {[%clk 0:00:02]} 64. b7+ {[%clk 0:00:05]}  Kd7 {[%clk 0:00:03]} 65. b8=Q {[%clk 0:00:06]} 1-0


[Site "https://www.chess.com"]

[Event "Titled Tuesday Blitz June 29 2021"]
[White "ValeriyGrinev"]
[Black "ChristopherYoo"]
[WhiteElo "2584"]
[BlackElo "2947"]
[Result "1-0"]
[Round "02"]
[TimeControl "180+1"]
[Date "2021.06.29"]
[WhiteClock "0:00:42"]
[BlackClock "0:00:01"]

1. c4 {[%clk 0:03:00]}  e6 {[%clk 0:02:55]} 2. Nc3 {[%clk 0:02:58]}  Nf6 {[%clk 0:02:55]} 3. e4 {[%clk 0:02:58]}  c5 {[%clk 0:02:55]} 4. e5 {[%clk 0:02:57]}  Ng8 {[%clk 0:02:54]} 5. d4 {[%clk 0:02:58]}  cxd4 {[%clk 0:02:53]} 6. Qxd4 {[%clk 0:02:58]}  Nc6 {[%clk 0:02:53]} 7. Qe4 {[%clk 0:02:56]}  f5 {[%clk 0:02:51]} 8. exf6 {[%clk 0:02:56]}  Nxf6 {[%clk 0:02:51]} 9. Qh4 {[%clk 0:02:55]}  Be7 {[%clk 0:02:50]} 10. Bg5 {[%clk 0:02:53]}  O-O {[%clk 0:02:49]} 11. Nf3 {[%clk 0:02:53]}  h6 {[%clk 0:02:49]} 12. Bd2 {[%clk 0:02:41]}  d5 {[%clk 0:02:47]} 13. cxd5 {[%clk 0:02:33]}  exd5 {[%clk 0:02:46]} 14. Qg3 {[%clk 0:02:25]}  Bd6 {[%clk 0:02:26]} 15. Qg6 {[%clk 0:02:20]}  Re8+ {[%clk 0:02:13]} 16. Be2 {[%clk 0:02:17]}  Ne7 {[%clk 0:02:08]} 17. Qc2 {[%clk 0:02:12]}  Bf5 {[%clk 0:02:05]} 18. Qb3 {[%clk 0:02:12]}  Nc6 {[%clk 0:01:24]} 19. O-O {[%clk 0:01:57]}  Na5 {[%clk 0:01:23]} 20. Qd1 {[%clk 0:01:55]}  Nc4 {[%clk 0:01:21]} 21. Nxd5 {[%clk 0:01:51]}  Nxd2 {[%clk 0:01:10]} 22. Nxf6+ {[%clk 0:01:48]}  Qxf6 {[%clk 0:01:10]} 23. Qxd2 {[%clk 0:01:44]}  Rad8 {[%clk 0:01:09]} 24. Bc4+ {[%clk 0:01:43]}  Kh7 {[%clk 0:01:09]} 25. Qc3 {[%clk 0:01:43]}  Qxc3 {[%clk 0:01:02]} 26. bxc3 {[%clk 0:01:44]}  Rc8 {[%clk 0:01:02]} 27. Bd5 {[%clk 0:01:42]}  Rxc3 {[%clk 0:01:00]} 28. Bxb7 {[%clk 0:01:41]}  Re2 {[%clk 0:01:00]} 29. Nd4 {[%clk 0:01:39]}  Bd3 {[%clk 0:00:27]} 30. Nxe2 {[%clk 0:01:35]}  Bxe2 {[%clk 0:00:28]} 31. Rfe1 {[%clk 0:01:35]}  Bc4 {[%clk 0:00:23]} 32. Be4+ {[%clk 0:01:34]}  g6 {[%clk 0:00:22]} 33. Rac1 {[%clk 0:01:32]}  Rxc1 {[%clk 0:00:20]} 34. Rxc1 {[%clk 0:01:33]}  Bf7 {[%clk 0:00:19]} 35. Rc6 {[%clk 0:01:31]}  Be5 {[%clk 0:00:19]} 36. Rc5 {[%clk 0:01:25]}  Bd4 {[%clk 0:00:18]} 37. Rc7 {[%clk 0:01:23]}  Kg8 {[%clk 0:00:19]} 38. a4 {[%clk 0:01:18]}  Bb6 {[%clk 0:00:19]} 39. Rd7 {[%clk 0:01:16]}  Kf8 {[%clk 0:00:18]} 40. a5 {[%clk 0:01:13]}  Bc5 {[%clk 0:00:17]} 41. Rc7 {[%clk 0:01:11]}  Bd4 {[%clk 0:00:17]} 42. h4 {[%clk 0:01:09]}  h5 {[%clk 0:00:16]} 43. Rd7 {[%clk 0:01:03]}  Bc5 {[%clk 0:00:14]} 44. Bd5 {[%clk 0:01:03]}  Be8 {[%clk 0:00:15]} 45. Rc7 {[%clk 0:01:02]}  Bd4 {[%clk 0:00:14]} 46. g3 {[%clk 0:01:00]}  Bb5 {[%clk 0:00:08]} 47. Be4 {[%clk 0:00:59]}  Be8 {[%clk 0:00:08]} 48. Kg2 {[%clk 0:00:53]}  Bf7 {[%clk 0:00:06]} 49. Rd7 {[%clk 0:00:49]}  Bc5 {[%clk 0:00:05]} 50. Bd5 {[%clk 0:00:49]}  Be8 {[%clk 0:00:04]} 51. Rc7 {[%clk 0:00:48]}  Bd4 {[%clk 0:00:05]} 52. f4 {[%clk 0:00:46]}  Bb5 {[%clk 0:00:05]} 53. Be4 {[%clk 0:00:45]}  Be8 {[%clk 0:00:04]} 54. Kf3 {[%clk 0:00:45]}  Bf7 {[%clk 0:00:03]} 55. Rd7 {[%clk 0:00:44]}  Bc5 {[%clk 0:00:02]} 56. Bd5 {[%clk 0:00:44]}  Be8 {[%clk 0:00:02]} 57. Rc7 {[%clk 0:00:44]}  Bd4 {[%clk 0:00:01]} 58. Ke4 {[%clk 0:00:44]}  Bf2 {[%clk 0:00:01]} 59. f5 {[%clk 0:00:43]}  gxf5+ {[%clk 0:00:01]} 60. Kxf5 {[%clk 0:00:43]}  Bxg3 {[%clk 0:00:02]} 61. Rxa7 {[%clk 0:00:42]}  Bxh4 {[%clk 0:00:02]} 62. a6 {[%clk 0:00:42]}  Bb5 {[%clk 0:00:01]} 63. Rf7+ {[%clk 0:00:41]}  Ke8 {[%clk 0:00:01]} 64. a7 {[%clk 0:00:42]} 1-0


[Site "https://www.chess.com"]